[Event "FIDE WCCC Open-12 2024"]
[Site "Montesilvano"]
[Date "2024.11.18"]
[Round "3.39"]
[White "Radnaev, Leo"]
[Black "Leht, Karl Samuel"]
[Result "1-0"]
[ECO "C54"]
[WhiteElo "1990"]
[BlackElo "1701"]
[PlyCount "175"]
[EventDate "2024.11.18"]
[EventType "swiss"]
[EventCountry "ITA"]
[TimeControl "5400+30"]

1. e4 {[%emt 0:00:03]} e5 {[%emt 0:00:09]} 2. Nf3 {[%emt 0:00:03]} Nc6 {[%emt 0:00:10]} 3. Bc4 {[%emt 0:00:04]} Bc5 {[%emt 1:31:41]} 4. c3 {[%emt 0:00:06]} Nf6 {[%emt 0:00:00]} 5. d3 {[%emt 0:00:15]} d6 {[%emt 0:00:00]} 6. O-O {[%emt 0:00:18]} Bg4 {[%emt 0:00:00]} 7. Nbd2 {[%emt 0:01:33]} a5 {[%emt 0:00:00]} 8. Re1 {[%emt 0:10:53]} O-O {[%emt 0:00:00]} 9. h3 {[%emt 0:01:12]} Bh5 {[%emt 0:00:00]} 10. Nf1 {[%emt 0:02:15]} h6 {[%emt 0:00:00]} 11. Ng3 {[%emt 0:00:57]} Bg6 {[%emt 0:00:00]} 12. Qe2 {[%emt 0:24:42]} d5 {[%emt 0:00:00]} 13. Bb5 {[%emt 0:03:06]} Na7 {[%emt 0:00:00]} 14. Ba4 {[%emt 0:00:58]} b5 {[%emt 0:00:00]} 15. Bc2 {[%emt 0:00:44]} Re8 {[%emt 0:00:00]} 16. Be3 {[%emt 0:51:21]} Bd6 {[%emt 0:00:00]} 17. Rad1 {[%emt 0:00:00]} c5 {[%emt 0:00:00]} 18. exd5 {[%emt 0:00:00]} Nxd5 {[%emt 0:00:00]} 19. Ne4 {[%emt 0:00:00]} f5 {[%emt 0:00:00]} 20. Nxd6 {[%emt 0:00:00]} Qxd6 {[%emt 0:00:00]} 21. Nh4 {[%emt 0:00:00]} Bh7 {[%emt 0:00:00]} 22. Nf3 {[%emt 0:00:00]} Nc6 {[%emt 0:00:00]} 23. Nd2 {[%emt 0:00:00]} a4 {[%emt 0:00:00]} 24. Ne4 {[%emt 0:00:00]} fxe4 {[%emt 0:00:00]} 25. dxe4 {[%emt 0:00:00]} Nxc3 {[%emt 0:00:00]} 26. bxc3 {[%emt 0:00:34]} Qe6 {[%emt 0:04:31]} 27. Bb1 {[%emt 0:00:22]} c4 {[%emt 0:00:32]} 28. Rd5 {[%emt 0:00:36]} Rab8 {[%emt 0:00:59]} 29. a3 {[%emt 0:00:16]} Ne7 {[%emt 0:01:11]} 30. Rd2 {[%emt 0:00:37]} Red8 {[%emt 0:00:56]} 31. Red1 {[%emt 0:00:04]} Nc6 {[%emt 0:00:20]} 32. Rd5 {[%emt 0:00:26]} Qf6 {[%emt 0:01:13]} 33. Bc5 {[%emt 0:01:20]} Qg5 {[%emt 0:01:08]} 34. Be3 {[%emt 0:01:32]} Qf6 {[%emt 0:00:19]} 35. R1d2 {[%emt 0:01:03]} Rxd5 {[%emt 0:01:29]} 36. Rxd5 {[%emt 0:00:07]} Bg6 {[%emt 0:01:01]} 37. Rxb5 {[%emt 0:02:26]} Bf7 {[%emt 0:01:25]} 38. Rxb8+ {[%emt 0:00:28]} Nxb8 {[%emt 0:00:04]} 39. Bc2 {[%emt 0:00:38]} Qc6 {[%emt 0:01:02]} 40. Qd1 {[%emt 0:00:29]} Be8 {[%emt 0:00:15]} 41. Qd8 {[%emt 0:00:45]} Qb5 {[%emt 0:00:55]} 42. Qb6 {[%emt 0:00:43]} Qxb6 {[%emt 0:00:17]} 43. Bxb6 {[%emt 0:01:04]} Bc6 {[%emt 0:00:21]} 44. Bc7 {[%emt 0:00:00]} Nd7 {[%emt 0:00:08]} 45. Kf1 {[%emt 0:00:00]} Kf7 {[%emt 0:00:08]} 46. Ke2 {[%emt 0:00:04]} Ke6 {[%emt 0:00:57]} 47. Ke3 {[%emt 0:00:13]} Nc5 {[%emt 0:00:33]} 48. g3 {[%emt 0:00:34]} g5 {[%emt 0:00:35]} 49. f4 {[%emt 0:00:33]} gxf4+ {[%emt 0:00:23]} 50. gxf4 {[%emt 0:00:00]} exf4+ {[%emt 0:00:26]} 51. Bxf4 {[%emt 0:00:02]} h5 {[%emt 0:00:14]} 52. Kd4 {[%emt 0:00:37]} Nd3 {[%emt 0:01:02]} 53. Bg3 {[%emt 0:01:01]} Bb5 {[%emt 0:00:19]} 54. Bd1 {[%emt 0:00:35]} Be8 {[%emt 0:00:18]} 55. Be2 {[%emt 0:00:57]} Nb2 {[%emt 0:00:18]} 56. h4 {[%emt 0:01:03]} Bf7 {[%emt 0:01:46]} 57. Bf1 {[%emt 0:00:39]} Kd7 {[%emt 0:01:11]} 58. Bh3+ {[%emt 0:00:27]} Be6 {[%emt 0:00:29]} 59. Bg2 {[%emt 0:00:41]} Bg4 {[%emt 0:00:35]} 60. e5 {[%emt 0:00:26]} Ke7 {[%emt 0:00:20]} 61. Bd5 {[%emt 0:00:28]} Bd7 {[%emt 0:00:43]} 62. Bf4 {[%emt 0:00:10]} Be6 {[%emt 0:00:25]} 63. Bc6 {[%emt 0:00:28]} Kf7 {[%emt 0:00:33]} 64. Bg5 {[%emt 0:00:08]} Bg4 {[%emt 0:00:28]} 65. Be4 {[%emt 0:01:11]} Be6 {[%emt 0:00:26]} 66. Bc6 {[%emt 0:00:40]} Bg4 {[%emt 0:00:12]} 67. Ke4 {[%emt 0:00:15]} Be6 {[%emt 0:00:17]} 68. Bf6 {[%emt 0:00:46]} Bh3 {[%emt 0:00:50]} 69. Kf4 {[%emt 0:00:19]} Ke6 {[%emt 0:00:46]} 70. Kg5 {[%emt 0:00:27]} Bg4 {[%emt 0:00:12]} 71. Be8 {[%emt 0:00:24]} Nd1 {[%emt 0:00:18]} 72. Kg6 {[%emt 0:00:38]} Ne3 {[%emt 0:01:05]} 73. Bf7+ {[%emt 0:00:22]} Kd7 {[%emt 0:00:09]} 74. Kg5 {[%emt 0:00:45]} Be6 {[%emt 0:00:53]} 75. Bxh5 {[%emt 0:00:34]} Nd5 {[%emt 0:00:24]} 76. Bg4 {[%emt 0:00:30]} Nxc3 {[%emt 0:00:10]} 77. h5 {[%emt 0:00:28]} Ne4+ {[%emt 0:00:43]} 78. Kf4 {[%emt 0:00:05]} Nxf6 {[%emt 0:00:24]} 79. Bxe6+ {[%emt 0:00:50]} Kxe6 {[%emt 0:00:14]} 80. exf6 {[%emt 0:00:05]} Kxf6 {[%emt 0:00:33]} 81. Ke4 {[%emt 0:00:05]} c3 {[%emt 0:00:37]} 82. Kd3 {[%emt 0:00:08]} c2 {[%emt 0:00:20]} 83. Kxc2 {[%emt 0:00:02]} Kg5 {[%emt 0:00:05]} 84. Kc3 {[%emt 0:00:09]} Kxh5 {[%emt 0:00:07]} 85. Kb4 {[%emt 0:00:08]} Kg5 {[%emt 0:00:08]} 86. Kxa4 {[%emt 0:00:04]} Kf5 {[%emt 0:00:10]} 87. Kb5 {[%emt 0:00:05]} Ke6 {[%emt 0:00:13]} 88. Kc6 {[%emt 0:00:29]} 1-0

[Event "FIDE WCCC Open-12 2024"]
[Site "Montesilvano"]
[Date "2024.11.18"]
[Round "3.40"]
[White "Sun, Kevin"]
[Black "Isakov, Amin"]
[Result "1/2-1/2"]
[ECO "B45"]
[WhiteElo "1966"]
[BlackElo "1698"]
[PlyCount "99"]
[EventDate "2024.11.18"]
[EventType "swiss"]
[EventCountry "ITA"]
[TimeControl "5400+30"]

1. e4 {[%emt 0:00:01]} c5 {[%emt 0:00:07]} 2. Nf3 {[%emt 0:00:05]} e6 {[%emt 0:00:08]} 3. d4 {[%emt 0:00:06]} cxd4 {[%emt 0:00:06]} 4. Nxd4 {[%emt 0:00:05]} Nf6 {[%emt 0:00:08]} 5. Nc3 {[%emt 0:00:04]} Nc6 {[%emt 0:00:07]} 6. Nxc6 {[%emt 0:00:15]} bxc6 {[%emt 0:00:07]} 7. e5 {[%emt 0:00:07]} Nd5 {[%emt 0:00:06]} 8. Ne4 {[%emt 0:00:06]} Qc7 {[%emt 0:00:07]} 9. f4 {[%emt 0:00:07]} Qb6 {[%emt 0:00:09]} 10. Bd3 {[%emt 0:09:56]} Be7 {[%emt 0:10:32]} 11. Qe2 {[%emt 0:10:51]} f5 {[%emt 0:14:20]} 12. exf6 {[%emt 0:09:29]} Nxf6 {[%emt 0:02:35]} 13. Nxf6+ {[%emt 0:09:17]} Bxf6 {[%emt 0:00:15]} 14. c3 {[%emt 0:00:18]} Bh4+ {[%emt 0:03:07]} 15. g3 {[%emt 0:01:31]} Bf6 {[%emt 0:00:07]} 16. Be3 {[%emt 0:00:51]} c5 {[%emt 0:02:00]} 17. Be4 {[%emt 0:05:57]} Bb7 {[%emt 0:00:42]} 18. Bxb7 {[%emt 0:05:37]} Qxb7 {[%emt 0:00:55]} 19. O-O {[%emt 0:00:18]} Rc8 {[%emt 0:01:50]} 20. f5 {[%emt 0:02:43]} O-O {[%emt 0:00:15]} 21. fxe6 {[%emt 0:01:01]} dxe6 {[%emt 0:01:00]} 22. Rad1 {[%emt 0:02:18]} Qe4 {[%emt 0:15:19]} 23. Rfe1 {[%emt 0:03:41]} Qa4 {[%emt 0:04:16]} 24. b3 {[%emt 0:01:33]} Qa5 {[%emt 0:05:51]} 25. c4 {[%emt 0:01:08]} Bc3 {[%emt 0:02:23]} 26. Rf1 {[%emt 0:01:56]} e5 {[%emt 0:02:16]} 27. Rf3 {[%emt 0:07:03]} Bd4 {[%emt 0:07:16]} 28. Rdf1 {[%emt 0:01:27]} Rxf3 {[%emt 0:07:16]} 29. Qxf3 {[%emt 0:00:24]} Qd8 {[%emt 0:00:49]} 30. Kg2 {[%emt 0:02:20]} Qd7 {[%emt 0:02:03]} 31. h4 {[%emt 0:07:40]} Qc6 {[%emt 0:03:36]} 32. Qxc6 {[%emt 0:01:33]} Rxc6 {[%emt 0:00:07]} 33. Bxd4 {[%emt 0:00:22]} exd4 {[%emt 0:00:12]} 34. Rf5 {[%emt 0:01:23]} g6 {[%emt 0:08:29]} 35. Rd5 {[%emt 0:00:24]} Rc7 {[%emt 0:00:20]} 36. Kf3 {[%emt 0:02:00]} Kf7 {[%emt 0:00:15]} 37. Ke2 {[%emt 0:01:04]} Ke6 {[%emt 0:05:01]} 38. Kd3 {[%emt 0:00:10]} Rc6 {[%emt 0:00:17]} 39. b4 {[%emt 0:02:53]} cxb4 {[%emt 0:00:08]} 40. Kxd4 {[%emt 0:00:23]} Ra6 {[%emt 0:01:30]} 41. Kc5 {[%emt 0:00:57]} Ra5+ {[%emt 0:01:11]} 42. Kxb4 {[%emt 0:00:18]} Rxd5 {[%emt 0:00:06]} 43. cxd5+ {[%emt 0:00:04]} Kxd5 {[%emt 0:00:04]} 44. Kb5 {[%emt 0:00:04]} Ke4 {[%emt 0:00:27]} 45. Ka6 {[%emt 0:01:29]} Kf3 {[%emt 0:00:06]} 46. Kxa7 {[%emt 0:00:07]} Kxg3 {[%emt 0:00:07]} 47. a4 {[%emt 0:00:05]} Kxh4 {[%emt 0:00:05]} 48. a5 {[%emt 0:00:04]} g5 {[%emt 0:00:11]} 49. a6 {[%emt 0:00:16]} g4 {[%emt 0:00:06]} 50. Kb8 {[%emt 0:00:18]} 1/2-1/2

[Event "FIDE WCCC Open-12 2024"]
[Site "Montesilvano"]
[Date "2024.11.18"]
[Round "3.41"]
[White "Ilcic, Aleksa"]
[Black "El Zein, Bassam"]
[Result "1-0"]
[ECO "D07"]
[WhiteElo "1757"]
[BlackElo "1947"]
[PlyCount "118"]
[EventDate "2024.11.18"]
[EventType "swiss"]
[EventCountry "ITA"]
[TimeControl "5400+30"]

1. d4 {[%emt 0:00:12]} d5 {[%emt 0:00:12]} 2. Nf3 {[%emt 0:00:18]} Nc6 {[%emt 0:00:09]} 3. e3 {[%emt 0:02:06]} Bg4 {[%emt 0:00:27]} 4. c4 {[%emt 0:01:35]} e5 {[%emt 0:00:38]} 5. Be2 {[%emt 0:06:19]} Bb4+ {[%emt 0:01:04]} 6. Bd2 {[%emt 0:02:47]} e4 {[%emt 0:02:05]} 7. Ne5 {[%emt 0:11:05]} Nxe5 {[%emt 0:01:44]} 8. dxe5 {[%emt 0:02:56]} Bxd2+ {[%emt 0:00:25]} 9. Nxd2 {[%emt 0:00:09]} Bxe2 {[%emt 0:00:05]} 10. Qxe2 {[%emt 0:00:15]} Qg5 {[%emt 0:00:14]} 11. O-O-O {[%emt 0:09:41]} Qxe5 {[%emt 0:00:59]} 12. cxd5 {[%emt 0:00:33]} O-O-O {[%emt 0:00:50]} 13. Nc4 {[%emt 0:02:14]} Qe7 {[%emt 0:00:57]} 14. Rd4 {[%emt 0:02:08]} Nf6 {[%emt 0:00:28]} 15. Rhd1 {[%emt 0:02:04]} Qc5 {[%emt 0:01:05]} 16. Kb1 {[%emt 0:03:49]} Rhe8 {[%emt 0:07:28]} 17. d6 {[%emt 0:19:47]} Re6 {[%emt 0:03:08]} 18. dxc7 {[%emt 0:06:07]} Rxd4 {[%emt 0:00:16]} 19. exd4 {[%emt 0:00:15]} Qxc7 {[%emt 0:02:08]} 20. d5 {[%emt 0:00:24]} Ra6 {[%emt 0:00:35]} 21. d6 {[%emt 0:07:38]} Qd7 {[%emt 0:01:22]} 22. Ne5 {[%emt 0:00:25]} Qa4 {[%emt 0:03:48]} 23. b3 {[%emt 0:01:25]} Qa5 {[%emt 0:04:12]} 24. d7+ {[%emt 0:02:31]} Nxd7 {[%emt 0:00:07]} 25. Nxd7 {[%emt 0:00:32]} Qf5 {[%emt 0:00:25]} 26. Nc5 {[%emt 0:02:43]} e3+ {[%emt 0:00:50]} 27. Qd3 {[%emt 0:00:54]} Qxd3+ {[%emt 0:00:09]} 28. Nxd3 {[%emt 0:00:46]} exf2 {[%emt 0:00:10]} 29. Rf1 {[%emt 0:00:53]} Rd6 {[%emt 0:00:17]} 30. Kc2 {[%emt 0:00:19]} Rc6+ {[%emt 0:00:19]} 31. Kd2 {[%emt 0:00:13]} Ra6 {[%emt 0:00:05]} 32. a4 {[%emt 0:01:52]} Rb6 {[%emt 0:00:03]} 33. b4 {[%emt 0:01:25]} Ra6 {[%emt 0:00:06]} 34. a5 {[%emt 0:00:36]} Rh6 {[%emt 0:00:09]} 35. h3 {[%emt 0:00:13]} f6 {[%emt 0:00:16]} 36. Rxf2 {[%emt 0:00:17]} Rh4 {[%emt 0:00:08]} 37. Rf4 {[%emt 0:00:25]} Rh5 {[%emt 0:00:03]} 38. Rg4 {[%emt 0:00:38]} g5 {[%emt 0:00:19]} 39. Ke3 {[%emt 0:00:46]} f5 {[%emt 0:00:09]} 40. Rc4+ {[%emt 0:00:06]} Kd8 {[%emt 0:00:05]} 41. Ne5 {[%emt 0:00:51]} Ke7 {[%emt 0:00:51]} 42. b5 {[%emt 0:01:16]} Kd6 {[%emt 0:00:14]} 43. Nf3 {[%emt 0:01:04]} g4 {[%emt 0:00:35]} 44. hxg4 {[%emt 0:07:57]} fxg4 {[%emt 0:00:02]} 45. Rxg4 {[%emt 0:00:14]} Rxb5 {[%emt 0:00:10]} 46. a6 {[%emt 0:00:26]} bxa6 {[%emt 0:00:14]} 47. Rg7 {[%emt 0:00:17]} h5 {[%emt 0:00:35]} 48. Rxa7 {[%emt 0:00:10]} a5 {[%emt 0:00:09]} 49. Nd2 {[%emt 0:00:35]} Kc5 {[%emt 0:00:38]} 50. Rxa5 {[%emt 0:00:21]} Rxa5 {[%emt 0:00:02]} 51. Nb3+ {[%emt 0:00:06]} Kd5 {[%emt 0:00:23]} 52. Nxa5 {[%emt 0:00:03]} Ke5 {[%emt 0:00:03]} 53. Kf3 {[%emt 0:00:04]} Kf5 {[%emt 0:00:04]} 54. Kg3 {[%emt 0:00:16]} Kg5 {[%emt 0:00:06]} 55. Nb3 {[%emt 0:00:40]} h4+ {[%emt 0:00:01]} 56. Kh3 {[%emt 0:00:13]} Kh5 {[%emt 0:00:03]} 57. Nd2 {[%emt 0:00:07]} Kg5 {[%emt 0:00:05]} 58. Nf3+ {[%emt 0:00:17]} Kh5 {[%emt 0:00:01]} 59. Nxh4 {[%emt 0:00:16]} Kg5 {[%emt 0:00:08]} 1-0

[Event "FIDE WCCC Open-12 2024"]
[Site "Montesilvano"]
[Date "2024.11.18"]
[Round "3.42"]
[White "Gao, Heye"]
[Black "Teo, Hong Kai Javier"]
[Result "1-0"]
[ECO "C15"]
[WhiteElo "1933"]
[BlackElo "1675"]
[PlyCount "31"]
[EventDate "2024.11.18"]
[EventType "swiss"]
[EventCountry "ITA"]
[TimeControl "5400+30"]

1. e4 {[%emt 0:00:10]} e6 {[%emt 0:00:19]} 2. d4 {[%emt 0:00:40]} d5 {[%emt 0:00:55]} 3. Nc3 {[%emt 0:00:59]} Bb4 {[%emt 0:01:16]} 4. Nge2 {[%emt 0:00:37]} dxe4 {[%emt 0:06:01]} 5. a3 {[%emt 0:01:51]} Bxc3+ {[%emt 0:00:21]} 6. Nxc3 {[%emt 0:00:32]} f5 {[%emt 0:00:45]} 7. Qh5+ {[%emt 0:01:25]} g6 {[%emt 0:01:09]} 8. Qh3 {[%emt 0:00:52]} Nc6 {[%emt 0:02:50]} 9. Bf4 {[%emt 0:06:41]} Nge7 {[%emt 0:10:58]} 10. O-O-O {[%emt 0:04:15]} Nd5 {[%emt 0:01:31]} 11. Bh6 {[%emt 0:01:36]} Qe7 {[%emt 0:04:51]} 12. Bc4 {[%emt 0:01:44]} Nxc3 {[%emt 0:05:43]} 13. Qxc3 {[%emt 0:00:32]} Qf6 {[%emt 0:03:07]} 14. Qg3 {[%emt 0:09:06]} e5 {[%emt 0:11:16]} 15. dxe5 {[%emt 0:02:19]} Nxe5 {[%emt 0:01:26]} 16. Bg5 {[%emt 0:00:30]} 1-0

[Event "FIDE WCCC Open-12 2024"]
[Site "Montesilvano"]
[Date "2024.11.18"]
[Round "3.43"]
[White "Mikolavicius, Julius"]
[Black "Dos Santos, Leonardo Lopes"]
[Result "1-0"]
[ECO "C50"]
[WhiteElo "1746"]
[BlackElo "1930"]
[PlyCount "61"]
[EventDate "2024.11.18"]
[EventType "swiss"]
[EventCountry "ITA"]
[TimeControl "5400+30"]

1. e4 {[%emt 0:00:01]} e5 {[%emt 0:00:05]} 2. Nf3 {[%emt 0:00:03]} Nc6 {[%emt 0:00:07]} 3. Bc4 {[%emt 0:00:07]} Bc5 {[%emt 0:00:08]} 4. d3 {[%emt 0:00:23]} Nf6 {[%emt 0:01:14]} 5. Nc3 {[%emt 0:00:10]} h6 {[%emt 0:09:43]} 6. h3 {[%emt 0:00:15]} O-O {[%emt 0:03:11]} 7. Be3 {[%emt 0:00:04]} Bb6 {[%emt 0:01:23]} 8. Qd2 {[%emt 0:00:27]} d6 {[%emt 0:02:50]} 9. g4 {[%emt 0:00:42]} Nd4 {[%emt 0:16:06]} 10. Bxd4 {[%emt 0:01:27]} Bxd4 {[%emt 0:00:22]} 11. Nxd4 {[%emt 0:02:02]} exd4 {[%emt 0:01:05]} 12. Ne2 {[%emt 0:00:41]} c5 {[%emt 0:01:56]} 13. g5 {[%emt 0:01:45]} hxg5 {[%emt 0:00:54]} 14. Qxg5 {[%emt 0:00:25]} Nh7 {[%emt 0:11:29]} 15. Qg3 {[%emt 0:00:40]} b5 {[%emt 0:00:59]} 16. Bd5 {[%emt 0:01:43]} Rb8 {[%emt 0:00:59]} 17. Rg1 {[%emt 0:00:13]} Qf6 {[%emt 0:00:58]} 18. Nf4 {[%emt 0:00:15]} Qe5 {[%emt 0:03:19]} 19. Nh5 {[%emt 0:07:53]} Qxg3 {[%emt 0:01:28]} 20. Rxg3 {[%emt 0:00:08]} g5 {[%emt 0:01:45]} 21. h4 {[%emt 0:01:11]} g4 {[%emt 0:02:18]} 22. f3 {[%emt 0:00:23]} Re8 {[%emt 0:01:58]} 23. fxg4 {[%emt 0:01:04]} Re5 {[%emt 0:03:35]} 24. Kd2 {[%emt 0:01:47]} Bb7 {[%emt 0:03:36]} 25. Bxb7 {[%emt 0:01:41]} Rxb7 {[%emt 0:00:09]} 26. Rf1 {[%emt 0:00:14]} c4 {[%emt 0:05:15]} 27. g5 {[%emt 0:01:41]} Kf8 {[%emt 0:04:25]} 28. Nf6 {[%emt 0:01:31]} Nxf6 {[%emt 0:00:30]} 29. Rxf6 {[%emt 0:00:03]} d5 {[%emt 0:00:59]} 30. g6 {[%emt 0:01:31]} Kg7 {[%emt 0:01:19]} 31. gxf7+ {[%emt 0:00:19]} 1-0

[Event "FIDE WCCC Open-12 2024"]
[Site "Montesilvano"]
[Date "2024.11.18"]
[Round "3.44"]
[White "Park, Onyoo"]
[Black "Rueda Ahumada, Gabriel Omar"]
[Result "0-1"]
[ECO "A84"]
[WhiteElo "1710"]
[BlackElo "1928"]
[PlyCount "42"]
[EventDate "2024.11.18"]
[EventType "swiss"]
[EventCountry "ITA"]
[TimeControl "5400+30"]

1. d4 {[%emt 0:00:03]} d5 {[%emt 0:00:17]} 2. c4 {[%emt 0:00:14]} e6 {[%emt 0:00:05]} 3. Nf3 {[%emt 0:00:08]} c6 {[%emt 0:00:07]} 4. e3 {[%emt 0:00:05]} Bd6 {[%emt 0:01:57]} 5. Bd3 {[%emt 0:00:26]} f5 {[%emt 0:00:10]} 6. O-O {[%emt 0:00:27]} Nf6 {[%emt 0:00:06]} 7. b3 {[%emt 0:01:10]} Nbd7 {[%emt 0:01:06]} 8. Ba3 {[%emt 0:02:15]} Bxa3 {[%emt 0:07:17]} 9. Nxa3 {[%emt 0:00:19]} Qe7 {[%emt 0:00:04]} 10. Nb1 {[%emt 0:15:23]} O-O {[%emt 0:00:17]} 11. cxd5 {[%emt 0:16:34]} Nxd5 {[%emt 0:08:01]} 12. Nbd2 {[%emt 0:03:06]} e5 {[%emt 0:04:03]} 13. dxe5 {[%emt 0:11:23]} Nxe5 {[%emt 0:00:23]} 14. Nxe5 {[%emt 0:00:14]} Qxe5 {[%emt 0:00:07]} 15. Nf3 {[%emt 0:02:28]} Qf6 {[%emt 0:00:06]} 16. Bc4 {[%emt 0:03:32]} Be6 {[%emt 0:00:09]} 17. Nd4 {[%emt 0:07:06]} Bf7 {[%emt 0:07:17]} 18. Qf3 {[%emt 0:14:51]} g6 {[%emt 0:08:28]} 19. Rfd1 {[%emt 0:04:01]} Rad8 {[%emt 0:00:16]} 20. e4 {[%emt 0:04:28]} fxe4 {[%emt 0:00:29]} 21. Qxe4 {[%emt 0:00:36]} Nc3 {[%emt 0:01:00]} 0-1

[Event "FIDE WCCC Open-12 2024"]
[Site "Montesilvano"]
[Date "2024.11.18"]
[Round "3.45"]
[White "Skytte, Robert"]
[Black "Kraucenka, Justas"]
[Result "1-0"]
[ECO "C10"]
[WhiteElo "1925"]
[BlackElo "1650"]
[PlyCount "67"]
[EventDate "2024.11.18"]
[EventType "swiss"]
[EventCountry "ITA"]
[TimeControl "5400+30"]

1. e4 {[%emt 0:00:05]} e6 {[%emt 0:00:02]} 2. d4 {[%emt 0:00:18]} d5 {[%emt 0:00:03]} 3. Nc3 {[%emt 0:00:07]} dxe4 {[%emt 0:00:04]} 4. Nxe4 {[%emt 0:00:08]} Nd7 {[%emt 0:00:03]} 5. Nf3 {[%emt 0:00:12]} Ngf6 {[%emt 0:00:04]} 6. Nxf6+ {[%emt 0:01:09]} Nxf6 {[%emt 0:00:07]} 7. Ne5 {[%emt 0:03:26]} a6 {[%emt 0:11:15]} 8. Bd3 {[%emt 0:00:51]} Be7 {[%emt 0:03:20]} 9. O-O {[%emt 0:00:25]} O-O {[%emt 0:01:02]} 10. Re1 {[%emt 0:00:11]} c5 {[%emt 0:03:20]} 11. dxc5 {[%emt 0:00:52]} Bxc5 {[%emt 0:02:37]} 12. Qf3 {[%emt 0:00:27]} Qe7 {[%emt 0:30:05]} 13. Qh3 {[%emt 0:02:13]} h5 {[%emt 0:35:11]} 14. Bg5 {[%emt 0:02:47]} Bd4 {[%emt 0:01:41]} 15. c3 {[%emt 0:02:14]} Bxe5 {[%emt 0:01:30]} 16. Rxe5 {[%emt 0:00:04]} g6 {[%emt 0:00:30]} 17. Qf3 {[%emt 0:01:00]} Kg7 {[%emt 0:01:00]} 18. Qf4 {[%emt 0:06:03]} Rd8 {[%emt 0:02:08]} 19. Be4 {[%emt 0:02:11]} Ra7 {[%emt 0:01:18]} 20. h3 {[%emt 0:00:31]} b5 {[%emt 0:00:23]} 21. Re1 {[%emt 0:00:16]} Bb7 {[%emt 0:00:21]} 22. Bxb7 {[%emt 0:00:18]} Rxb7 {[%emt 0:00:04]} 23. R1e3 {[%emt 0:00:20]} Rd1+ {[%emt 0:03:36]} 24. Kh2 {[%emt 0:00:29]} Qd8 {[%emt 0:01:13]} 25. Rf3 {[%emt 0:00:35]} Nd5 {[%emt 0:00:05]} 26. Rxd5 {[%emt 0:04:33]} Qxd5 {[%emt 0:00:04]} 27. Bh6+ {[%emt 0:00:16]} Kh7 {[%emt 0:00:55]} 28. Qf6 {[%emt 0:01:58]} Kxh6 {[%emt 0:01:06]} 29. Qh8+ {[%emt 0:00:08]} Kg5 {[%emt 0:00:02]} 30. h4+ {[%emt 0:00:56]} Kxh4 {[%emt 0:02:21]} 31. Qf6+ {[%emt 0:00:06]} g5 {[%emt 0:00:00]} 32. g3+ {[%emt 0:00:08]} Kg4 {[%emt 0:00:00]} 33. Rf4+ {[%emt 0:00:07]} gxf4 {[%emt 0:00:00]} 34. Qxf4# {[%emt 0:00:06]} 1-0

[Event "FIDE WCCC Open-12 2024"]
[Site "Montesilvano"]
[Date "2024.11.18"]
[Round "3.46"]
[White "Andreiev, Andrii"]
[Black "Yin, Milo"]
[Result "0-1"]
[ECO "C83"]
[WhiteElo "1704"]
[BlackElo "1925"]
[PlyCount "60"]
[EventDate "2024.11.18"]
[EventType "swiss"]
[EventCountry "ITA"]
[TimeControl "5400+30"]

1. e4 {[%emt 1:31:00]} e5 {[%emt 0:00:04]} 2. Nf3 {[%emt 0:00:00]} Nc6 {[%emt 0:00:04]} 3. Bb5 {[%emt 0:00:00]} a6 {[%emt 0:00:05]} 4. Ba4 {[%emt 0:00:00]} Nf6 {[%emt 0:00:05]} 5. O-O {[%emt 0:00:00]} Be7 {[%emt 0:00:09]} 6. Re1 {[%emt 0:00:00]} b5 {[%emt 0:00:05]} 7. Bb3 {[%emt 0:00:00]} O-O {[%emt 0:00:12]} 8. c3 {[%emt 0:00:00]} d5 {[%emt 0:00:07]} 9. d4 {[%emt 0:00:00]} Nxe4 {[%emt 0:09:08]} 10. dxe5 {[%emt 0:00:00]} Be6 {[%emt 0:01:06]} 11. Nbd2 {[%emt 0:00:00]} Nc5 {[%emt 0:08:55]} 12. Bc2 {[%emt 0:00:00]} b4 {[%emt 0:04:50]} 13. Nd4 {[%emt 0:00:00]} Nxd4 {[%emt 0:00:34]} 14. cxd4 {[%emt 0:06:30]} Nd7 {[%emt 0:01:27]} 15. Nb3 {[%emt 0:00:00]} c5 {[%emt 0:14:51]} 16. Re3 {[%emt 0:00:00]} c4 {[%emt 0:18:04]} 17. Bxh7+ {[%emt 0:00:00]} Kxh7 {[%emt 0:00:10]} 18. Qh5+ {[%emt 0:00:00]} Kg8 {[%emt 0:00:01]} 19. Rg3 {[%emt 0:00:00]} Bh4 {[%emt 0:02:58]} 20. Bg5 {[%emt 0:00:00]} Bxg5 {[%emt 0:01:45]} 21. Rxg5 {[%emt 0:00:00]} f6 {[%emt 0:00:51]} 22. Rg3 {[%emt 0:00:00]} cxb3 {[%emt 0:00:48]} 23. Re1 {[%emt 0:00:00]} bxa2 {[%emt 0:01:04]} 24. h4 {[%emt 0:00:00]} fxe5 {[%emt 0:03:07]} 25. Ree3 {[%emt 0:00:00]} a1=Q+ {[%emt 0:00:14]} 26. Kh2 {[%emt 0:00:00]} Qe7 {[%emt 0:03:08]} 27. Rg5 {[%emt 0:00:00]} Nf6 {[%emt 0:01:09]} 28. Qg6 {[%emt 0:00:00]} Ng4+ {[%emt 0:00:45]} 29. Rxg4 {[%emt 0:00:00]} Bxg4 {[%emt 0:00:07]} 30. Rxe5 {[%emt 0:00:00]} Qxh4# {[%emt 0:29:37]} 0-1

[Event "FIDE WCCC Open-12 2024"]
[Site "Montesilvano"]
[Date "2024.11.18"]
[Round "3.47"]
[White "Yerzhanuly Yernur"]
[Black "Italiani, Luca"]
[Result "1-0"]
[ECO "D30"]
[WhiteElo "1917"]
[BlackElo "1634"]
[PlyCount "75"]
[EventDate "2024.11.18"]
[EventType "swiss"]
[EventCountry "ITA"]
[TimeControl "5400+30"]

1. d4 {[%emt 0:00:04]} d5 {[%emt 0:00:11]} 2. c4 {[%emt 0:00:05]} e6 {[%emt 0:00:07]} 3. Nf3 {[%emt 0:00:32]} h6 {[%emt 0:00:09]} 4. Qc2 {[%emt 0:00:51]} Bb4+ {[%emt 0:00:37]} 5. Bd2 {[%emt 0:00:50]} Bxd2+ {[%emt 0:00:09]} 6. Nbxd2 {[%emt 0:00:03]} Nf6 {[%emt 0:01:02]} 7. g3 {[%emt 0:00:21]} O-O {[%emt 0:00:21]} 8. Bg2 {[%emt 0:00:08]} Nc6 {[%emt 0:03:24]} 9. O-O {[%emt 0:03:49]} dxc4 {[%emt 0:03:54]} 10. Qxc4 {[%emt 0:02:34]} Re8 {[%emt 0:03:52]} 11. Rfd1 {[%emt 0:01:21]} a6 {[%emt 0:03:34]} 12. Ne5 {[%emt 0:05:41]} Nxe5 {[%emt 0:10:40]} 13. dxe5 {[%emt 0:00:11]} Nd7 {[%emt 0:05:10]} 14. Ne4 {[%emt 0:00:54]} Rb8 {[%emt 0:03:50]} 15. Nc5 {[%emt 0:05:23]} b5 {[%emt 0:02:13]} 16. Qd4 {[%emt 0:00:28]} Qg5 {[%emt 0:05:08]} 17. Nxd7 {[%emt 0:01:38]} Bxd7 {[%emt 0:00:09]} 18. f4 {[%emt 0:00:27]} Qf5 {[%emt 0:03:09]} 19. Qxd7 {[%emt 0:00:09]} Qc2 {[%emt 0:00:13]} 20. Rd2 {[%emt 0:00:09]} Qc5+ {[%emt 0:00:11]} 21. Qd4 {[%emt 0:00:10]} Qe7 {[%emt 0:00:56]} 22. Rad1 {[%emt 0:00:11]} c5 {[%emt 0:00:57]} 23. Qd6 {[%emt 0:00:10]} Qa7 {[%emt 0:00:20]} 24. Be4 {[%emt 0:02:31]} Rec8 {[%emt 0:02:25]} 25. Qd7 {[%emt 0:01:02]} Qxd7 {[%emt 0:01:29]} 26. Rxd7 {[%emt 0:00:02]} c4 {[%emt 0:00:16]} 27. Bb7 {[%emt 0:04:31]} Rc5 {[%emt 0:01:18]} 28. Rd8+ {[%emt 0:02:05]} Rxd8 {[%emt 0:00:11]} 29. Rxd8+ {[%emt 0:00:03]} Kh7 {[%emt 0:00:10]} 30. Bxa6 {[%emt 0:00:06]} c3 {[%emt 0:00:55]} 31. bxc3 {[%emt 0:00:10]} Rxc3 {[%emt 0:00:05]} 32. Bxb5 {[%emt 0:00:05]} Kg6 {[%emt 0:00:17]} 33. Bd3+ {[%emt 0:00:05]} Kh5 {[%emt 0:00:13]} 34. h3 {[%emt 0:00:02]} g6 {[%emt 0:00:33]} 35. Kg2 {[%emt 0:01:10]} Ra3 {[%emt 0:00:51]} 36. Rh8 {[%emt 0:00:17]} Rxd3 {[%emt 0:00:47]} 37. g4+ {[%emt 0:00:07]} Kh4 {[%emt 0:00:13]} 38. Rxh6# {[%emt 0:00:11]} 1-0